fUSD/lending_fUSD_20260427
["ID","MTS","AMOUNT","RATE_DAILY","PERIOD"]
[421230515,1777276642733,431.80618844,0.00032876,120]
[421230516,1777276643137,214.41343357,0.00032876,120]
[421230517,1777276643780,500.0,0.00032876,120]
[421230518,1777276643814,479.61215692,0.00032876,120]
[421230519,1777276644851,500.0,0.00032876,120]
[421230520,1777276644914,287.60048979,0.00032876,120]
[421230521,1777276645219,571.83,0.00032876,120]
[421230522,1777276645284,500.0,0.00032876,120]
[421230523,1777276645670,231.00302444,0.00032876,120]
[421230524,1777276646010,701.93,0.00032876,120]
[421230525,1777276646081,2000.0,0.00032877,120]
[421230526,1777276646527,698.78,0.00032876,120]
[421230527,1777276646952,465.29046658,0.00032876,120]
[421230528,1777276647512,539.51,0.00032876,120]
[421230529,1777276648699,327.81219545,0.00032876,120]
[421230530,1777276648870,566.20348568,0.00032876,120]
[421230531,1777276649042,795.41,0.00032876,120]
[421230532,1777276649423,807.51,0.00032876,120]
[421230533,1777276650314,500.0,0.00032876,120]
[421230534,1777276651043,354.73415367,0.00032876,120]
[421230535,1777276651963,2000.0,0.00032876,120]
[421230536,1777276652009,524.17,0.00032876,120]
[421230537,1777276652157,2000.0,0.00032876,120]
[421230538,1777276652252,2000.0,0.00032877,120]
[421230539,1777276652373,2000.0,0.00032876,120]
[421230540,1777276652558,2000.0,0.00032876,120]
[421230541,1777276652819,2000.0,0.00032876,120]
[421230542,1777276652852,962.94,0.00032876,120]
[421230543,1777276653235,2000.0,0.00032876,120]
[421230544,1777276653987,2000.0,0.00032876,120]
[421230545,1777276654085,2000.0,0.00032876,120]
[421230546,1777276654422,2000.0,0.00032876,120]
[421230547,1777276654551,363.77834733,0.00032876,120]
[421230548,1777276654720,500.0,0.00032876,120]
[421230549,1777276654768,2000.0,0.00032876,120]
[421230550,1777276655014,878.73,0.00032876,120]
[421230551,1777276655185,2000.0,0.00032876,120]
[421230552,1777276655281,829.55,0.00032876,120]
[421230553,1777276655507,335.34379982,0.00032876,120]
[421230554,1777276655539,2000.0,0.00032876,120]
[421230555,1777276655905,2000.0,0.00032876,120]
[421230556,1777276656353,2000.0,0.00032876,120]
[421230557,1777276656450,500.0,0.00032876,120]
[421230558,1777276656736,2000.0,0.00032876,120]
[421230559,1777276657115,1338.71,0.00032876,120]
[421230560,1777276657166,2000.0,0.00032876,120]
[421230561,1777276657495,2000.0,0.00032876,120]
[421230562,1777276657694,500.0,0.00032876,120]
[421230563,1777276657935,2000.0,0.00032876,120]
[421230564,1777276658244,2000.0,0.00032876,120]
[421230565,1777276658316,500.0,0.00032876,120]
[421230566,1777276658578,2000.0,0.00032876,120]
[421230567,1777276658759,2000.0,0.00032877,120]
[421230568,1777276658942,2000.0,0.00032876,120]
[421230569,1777276659257,2000.0,0.00032876,120]
[421230570,1777276659543,327.04245724,0.00032876,120]
[421230571,1777276659588,2000.0,0.00032876,120]
[421230572,1777276659655,519.14071594,0.00032876,120]
[421230573,1777276660255,2000.0,0.00032876,120]
[421230574,1777276660342,335.89352794,0.00032876,120]
[421230575,1777276660403,2000.0,0.00032876,120]
[421230576,1777276660635,2000.0,0.00032876,120]
[421230577,1777276661032,2000.0,0.00032876,120]
[421230578,1777276661088,500.0,0.00032876,120]
[421230579,1777276661411,2000.0,0.00032876,120]
[421230580,1777276661781,2000.0,0.00032876,120]
[421230581,1777276661867,794.98,0.00032876,120]
[421230582,1777276662909,631.19868571,0.00032876,120]
[421230583,1777276662942,1557.98,0.00032876,120]
[421230584,1777276663080,500.0,0.00032876,120]
[421230585,1777276664634,2396.6,0.00032876,120]
[421230586,1777276664708,1933.52,0.00032876,120]
[421230587,1777276665025,580.99,0.00032876,120]
[421230588,1777276665062,500.0,0.00032876,120]
[421230589,1777276665220,2000.0,0.00032877,120]
[421230590,1777276666111,1306.25,0.00032876,120]
[421230591,1777276666827,832.44,0.00032876,120]
[421230592,1777276667448,2044.92,0.00032876,120]
[421230593,1777276667755,2408.98,0.00032876,120]
[421230594,1777276668395,500.0,0.00032876,120]
[421230595,1777276668794,500.0,0.00032876,120]
[421230596,1777276669313,733.96,0.00032876,120]
[421230597,1777276670263,500.0,0.00032876,120]
[421230598,1777276670429,500.0,0.00032876,120]
[421230599,1777276671571,2000.0,0.00032877,120]
[421230600,1777276673914,634.07826331,0.00032876,120]
[421230601,1777276674863,472.24320241,0.00032876,120]
[421230602,1777276674997,500.0,0.00032876,120]
[421230603,1777276675377,797.76,0.00032876,120]
[421230604,1777276675550,500.0,0.00032876,120]
[421230605,1777276675991,500.0,0.00032876,120]
[421230606,1777276676134,500.0,0.00032876,120]
[421230607,1777276677737,500.0,0.00032876,120]
[421230608,1777276678157,607.22,0.00032876,120]
[421230609,1777276679239,2000.0,0.00032877,120]
[421230610,1777276680464,500.0,0.00032876,120]
[421230611,1777276680646,500.0,0.00032876,120]
[421230612,1777276681308,568.64,0.00032876,120]
[421230613,1777276681986,551.91,0.00032876,120]
[421230614,1777276682098,626.19859066,0.00032876,120]
[421230615,1777276682268,44555.4,0.00032876,120]
[421230616,1777276684694,500.0,0.00032876,120]
[421230617,1777276684738,16421.23,0.00032876,120]
[421230618,1777276685006,500.0,0.00032876,120]
[421230619,1777276685746,500.0,0.00032876,120]
[421230620,1777276686428,2000.0,0.00032877,120]
[421230621,1777276686497,771.98,0.00032876,120]
[421230622,1777276688235,500.0,0.00032876,120]
[421230623,1777276688950,202.5,0.0003287,120]
[421230624,1777276689487,500.0,0.00032876,120]
[421230625,1777276689695,544.95,0.00032876,120]
[421230626,1777276690011,7840.99,0.00032876,120]
[421230627,1777276691343,581.92,0.00032876,120]
[421230628,1777276691416,1514.9,0.00032876,120]
[421230629,1777276691569,2622.16,0.00032876,120]
[421230630,1777276691829,563.92040273,0.00032876,120]
[421230631,1777276693171,500.0,0.00032876,120]
[421230632,1777276694166,797.59,0.00032876,120]
[421230633,1777276697068,500.0,0.00032876,120]
[421230634,1777276697208,1050.25,0.00032876,120]
[421230635,1777276698105,559.0,0.00032877,120]
[421230636,1777276698722,500.0,0.00032876,120]
[421230637,1777276699515,533.42,0.00032876,120]
[421230638,1777276699592,500.0,0.00032876,120]
[421230639,1777276699903,642.80320362,0.00032876,120]
[421230640,1777276699937,500.0,0.00032876,120]
[421230641,1777276701648,1132.1,0.00032876,120]
[421230642,1777276701720,500.0,0.00032876,120]
[421230643,1777276702067,500.0,0.00032876,120]
[421230644,1777276702455,332.58104705,0.00032876,120]
[421230645,1777276703719,500.0,0.00032876,120]
[421230646,1777276703758,500.0,0.00032876,120]
[421230647,1777276705332,500.0,0.00032876,120]
[421230648,1777276705517,500.0,0.00032876,120]
[421230649,1777276706801,1046.94,0.00032876,120]
[421230650,1777276708568,519.4,0.00032876,120]
[421230651,1777276708624,256.70447543,0.00032876,120]
[421230652,1777276708767,1656.12,0.00032876,120]
[421230653,1777276709398,1172.0,0.00032876,120]
[421230654,1777276710266,761.08,0.00032876,120]
[421230655,1777276711995,500.0,0.00032876,120]
[421230656,1777276712125,286.9121141,0.00032876,120]
[421230657,1777276713220,500.0,0.00032876,120]
[421230658,1777276714296,500.0,0.00032876,120]
[421230659,1777276715412,500.0,0.00032876,120]
[421230660,1777276716260,2512.9,0.00032876,120]
[421230661,1777276716293,3858.47,0.00032876,120]
[421230662,1777276717657,530.19,0.00032876,120]
[421230663,1777276719138,500.0,0.00032876,120]
[421230664,1777276719205,564.45,0.00032876,120]
[421230665,1777276719657,215.95144981,0.00032876,120]
[421230666,1777276719729,688.45,0.00032876,120]
[421230667,1777276721166,817.17,0.00032876,120]
[421230668,1777276722523,984.64,0.00032876,120]
[421230669,1777276723802,500.0,0.00032876,120]
[421230670,1777276723869,500.0,0.00032876,120]
[421230671,1777276725302,902.59,0.00032876,120]
[421230672,1777276725942,258.8026317,0.00032876,120]
[421230673,1777276726737,500.0,0.00032876,120]
[421230674,1777276729175,500.0,0.00032876,120]
[421230675,1777276729411,500.0,0.00032876,120]
[421230676,1777276729769,575.54,0.00032876,120]
[421230677,1777276729815,234.50021545,0.00032876,120]
[421230678,1777276729899,500.0,0.00032876,120]
[421230679,1777276730884,548.17664089,0.00032876,120]
[421230680,1777276730943,1660.41,0.00032876,120]
[421230681,1777276731211,1000.0,0.00032876,120]
[421230682,1777276731368,1586.93,0.00032876,120]
[421230683,1777276732630,261.29109488,0.00032876,120]
[421230684,1777276734587,186.03070954,0.00032876,120]
[421230685,1777276735646,500.0,0.00032876,120]
[421230686,1777276736763,940.22,0.00032876,120]
[421230687,1777276737403,500.0,0.00032876,120]
[421230688,1777276737807,542.37,0.00032876,120]
[421230689,1777276738325,500.0,0.00032876,120]
[421230690,1777276739869,500.0,0.00032876,120]
[421230691,1777276740455,1591.23,0.00032876,120]
[421230692,1777276741194,2567.1,0.00032876,120]
[421230693,1777276743368,167.29654119,0.00032876,120]
[421230694,1777276743879,165.24659863,0.00032876,120]
[421230695,1777276744745,500.0,0.00032876,120]
[421230696,1777276745036,980.3,0.00032876,120]
[421230697,1777276745187,2212.84,0.00032876,120]
[421230698,1777276745599,500.0,0.00032876,120]
[421230699,1777276746187,906.0,0.00032876,120]
[421230700,1777276747925,519.85,0.00032876,120]
[421230701,1777276748225,500.0,0.00032876,120]
[421230702,1777276749216,500.0,0.00032876,120]
[421230703,1777276750420,879.2,0.00032876,120]
[421230704,1777276750478,1332.79,0.00032876,120]
[421230705,1777276751132,500.0,0.00032876,120]
[421230706,1777276751271,500.0,0.00032876,120]
[421230707,1777276753238,1400.84,0.00032876,120]
[421230708,1777276753619,500.0,0.00032876,120]
[421230709,1777276753730,346.25285695,0.00032876,120]
[421230710,1777276755586,500.0,0.00032876,120]
[421230711,1777276756505,500.0,0.00032876,120]
[421230712,1777276756932,506.85,0.00032876,120]
[421230713,1777276757092,225.33790913,0.00032876,120]
[421230714,1777276757161,1102.09,0.00032876,120]
[421230715,1777276757353,500.0,0.00032876,120]
[421230716,1777276758343,-1200.0,9.598e-05,2]
[421230717,1777276758377,-274.0,9.598e-05,2]
[421230718,1777276758412,-341.6346856,9.599e-05,2]
[421230719,1777276758446,-150.0,9.599e-05,2]
[421230720,1777276758482,-500.0,9.599e-05,2]
[421230721,1777276758518,-163.96058088,9.599e-05,2]
[421230722,1777276758555,-500.0,9.599e-05,2]
[421230723,1777276758582,-500.0,9.599e-05,2]
[421230724,1777276758595,-500.0,9.599e-05,2]
[421230725,1777276758607,-200.0,9.599e-05,2]
[421230726,1777276758634,-274.0,9.599e-05,2]
[421230727,1777276758653,-26.0,9.599e-05,2]
[421230728,1777276758666,-315.6346856,9.599e-05,2]
[421230729,1777276758685,-11.72917604,9.599e-05,2]
[421230730,1777276758697,-138.27082396,9.599e-05,2]
[421230731,1777276758722,-215.73635989,9.599e-05,2]
[421230732,1777276758735,-284.26364011,9.599e-05,2]
[421230733,1777276758774,-163.96058088,9.599e-05,2]
[421230734,1777276758801,-51.77577901,9.599e-05,2]
[421230735,1777276758813,-448.22422099,9.599e-05,2]
[421230736,1777276758837,-97.71671804,9.599e-05,2]
[421230737,1777276759004,888.89,0.00032876,120]
[421230738,1777276762339,500.0,0.00032876,120]
[421230739,1777276763781,1056.17,0.00032876,120]
[421230740,1777276764366,626.38,0.00032876,120]
[421230741,1777276764498,500.0,0.00032876,120]
[421230742,1777276765652,165.5,0.00022,120]
[421230743,1777276766107,842.57,0.00032876,120]
[421230744,1777276766451,500.0,0.00032876,120]
[421230745,1777276767277,11075.66,0.00032876,120]
[421230746,1777276767346,2615.25,0.00032876,120]
[421230747,1777276767921,605.81,0.00032876,120]
[421230748,1777276770721,500.0,0.00032876,120]
[421230749,1777276771614,184.93275479,0.00032876,120]
[421230750,1777276772218,333.76431381,0.000321,120]
[421230751,1777276773375,551.51600976,0.00032876,120]
[421230752,1777276773637,764.36,0.00032876,120]
[421230753,1777276774285,1012.16,0.00032876,120]
[421230754,1777276774459,749.65,0.00032876,120]
[421230755,1777276775234,500.0,0.00032876,120]
[421230756,1777276775376,500.0,0.00032876,120]
[421230757,1777276777903,543.69946342,0.00032876,120]
[421230758,1777276778667,770.61,0.00032876,120]
[421230759,1777276778705,500.0,0.00032876,120]
[421230760,1777276780961,500.0,0.00032876,120]
[421230761,1777276781501,500.0,0.00032876,120]
[421230762,1777276781767,500.0,0.00032876,120]
[421230763,1777276781831,215.86960076,0.00032876,120]
[421230764,1777276782599,500.0,0.00032876,120]
[421230765,1777276783003,500.0,0.00032876,120]
[421230766,1777276783149,196.96965506,0.00032876,120]
[421230767,1777276783207,500.0,0.00032876,120]
[421230768,1777276784305,714.47,0.00032876,120]
[421230769,1777276784342,500.0,0.00032876,120]
[421230770,1777276784395,500.0,0.00032876,120]
[421230771,1777276784449,500.0,0.00032876,120]
[421230772,1777276784517,500.0,0.00032876,120]
[421230773,1777276784603,343.99858665,0.00032876,120]
[421230774,1777276784969,500.0,0.00032876,120]
[421230775,1777276786264,500.0,0.00032876,120]
[421230776,1777276786531,500.0,0.00032876,120]
[421230777,1777276787099,500.0,0.00032876,120]
[421230778,1777276787629,570.29020384,0.000328,120]
[421230779,1777276787920,2668.15,0.00032876,120]
[421230780,1777276788052,500.7567482,0.00032876,120]
[421230781,1777276788272,799.06,0.00032876,120]
[421230782,1777276788353,718.42,0.00032876,120]
[421230783,1777276789038,500.0,0.00032876,120]
[421230785,1777276789686,500.0,0.00032876,120]
[421230786,1777276791016,1078.95,0.00032876,120]
[421230787,1777276791225,500.0,0.00032876,120]
[421230788,1777276791338,500.0,0.00032876,120]
[421230789,1777276792137,1422.21,0.00032876,120]
[421230790,1777276792586,357.44,0.00031562,120]
[421230791,1777276792846,357.44,0.00032548,120]
[421230792,1777276793426,283.28367178,0.00032876,120]
[421230793,1777276794143,1085.49,0.00032876,120]
[421230794,1777276795129,500.0,0.00032876,120]
[421230795,1777276795719,1664.25,0.00032876,120]
[421230796,1777276795808,500.0,0.00032876,120]
[421230797,1777276796630,500.0,0.00032876,120]
[421230798,1777276798473,688.48,0.00032876,120]
[421230799,1777276798590,589.02,0.00032876,120]
[421230800,1777276798755,242.1496279,0.00032876,120]
[421230801,1777276798927,1500.37,0.0003,120]
[421230802,1777276799228,200.7406055,0.0003,120]
[421230803,1777276799280,672.69,0.00032876,120]
[421230804,1777276799832,659.61,0.00032876,120]
[421230805,1777276801336,280.9921982,0.00032876,120]
[421230806,1777276801378,2419.95,0.00032876,120]
[421230807,1777276801439,501.57,0.00032876,120]
[421230808,1777276803272,500.0,0.00032876,120]
[421230809,1777276803488,196.56171745,0.00032876,120]
[421230810,1777276803974,500.0,0.00032876,120]
[421230811,1777276805942,536.2015224,0.00032876,120]
[421230812,1777276807200,500.0,0.00032876,120]
[421230813,1777276807295,500.0,0.00032876,120]
[421230814,1777276807339,500.0,0.00032876,120]
[421230815,1777276807700,500.0,0.00032876,120]
[421230816,1777276808232,590.90246601,0.00032876,120]
[421230817,1777276808607,501.43105417,0.00032876,120]
[421230818,1777276808880,500.0,0.00032876,120]
[421230819,1777276809567,1587.11,0.00032876,120]
[421230820,1777276809704,770.65,0.00032876,120]
[421230821,1777276810180,541.94292453,0.00032876,120]
[421230822,1777276810709,500.0,0.00032876,120]
[421230824,1777276811704,501.65344693,0.00032876,120]
[421230825,1777276811988,1187.07,0.00032876,120]
[421230826,1777276812079,500.0,0.00032876,120]
[421230828,1777276812756,358.27817896,0.00032876,120]
[421230829,1777276813007,526.99,0.00032876,120]
[421230830,1777276813163,500.0,0.00032876,120]
[421230832,1777276813744,500.0,0.00032876,120]
[421230833,1777276814022,2000.0,0.00032876,120]
[421230834,1777276814351,2000.0,0.00032876,120]
[421230835,1777276814638,7683.92,0.00032876,120]
[421230836,1777276814728,2000.0,0.00032876,120]
[421230837,1777276814764,1037.94,0.00032876,120]
[421230838,1777276814903,738.25,0.00032876,120]
[421230839,1777276815102,2000.0,0.00032876,120]
[421230840,1777276815139,563.59762473,0.00032876,120]
[421230841,1777276815458,2000.0,0.00032876,120]
[421230842,1777276815804,2000.0,0.00032876,120]
[421230843,1777276816961,500.0,0.00032876,120]
[421230844,1777276817005,2000.0,0.00032876,120]
[421230845,1777276817062,245.10843003,0.00032876,120]
[421230846,1777276817123,2000.0,0.00032876,120]
[421230847,1777276817328,1869.8,0.00032876,120]
[421230848,1777276817985,500.0,0.00032876,120]
[421230849,1777276818326,1113.48,0.00032876,120]
[421230850,1777276818962,267.33249882,0.00032876,120]
[421230851,1777276820136,500.0,0.00032876,120]
[421230852,1777276820450,500.0,0.00032876,120]
[421230853,1777276820492,813.66,0.00032876,120]
[421230854,1777276820880,500.0,0.00032876,120]
[421230855,1777276820917,596.75,0.00032876,120]
[421230856,1777276821011,500.0,0.00032876,120]
[421230857,1777276824117,500.0,0.00032876,120]
[421230858,1777276824157,4656.3,0.00032876,120]
[421230859,1777276824661,500.0,0.00032876,120]
[421230860,1777276825245,500.0,0.00032876,120]
[421230861,1777276825914,522.05533974,0.00032876,120]
[421230862,1777276826289,273.92450363,0.00032876,120]
[421230863,1777276826697,1078.72,0.00032876,120]
[421230864,1777276828230,500.0,0.00032876,120]
[421230865,1777276829044,670.05,0.00032876,120]
[421230866,1777276829567,2210.19,0.00032876,120]
[421230867,1777276829667,220.4563293,0.00032876,120]
[421230868,1777276829701,500.0,0.00032876,120]
[421230869,1777276829791,500.0,0.00032876,120]
[421230870,1777276831217,779.41,0.00032876,120]
[421230871,1777276832358,500.0,0.00032876,120]
[421230873,1777276833251,459.45900422,0.00032876,120]
[421230874,1777276833527,858.76,0.00032876,120]
[421230875,1777276834488,330.77726079,0.00032876,120]
[421230877,1777276834859,962.82,0.00032876,120]
[421230878,1777276835448,1596.75,0.00032876,120]
[421230879,1777276835891,500.0,0.00032876,120]
[421230880,1777276836595,1739.45,0.00032876,120]
[421230881,1777276839375,42698.92,0.00032876,120]
[421230882,1777276839643,216.62471433,0.00032876,120]
[421230883,1777276839838,536.44,0.00032876,120]
[421230884,1777276840714,500.0,0.00032876,120]
[421230885,1777276841165,1144.4,0.00032876,120]
[421230886,1777276841409,500.0,0.00032876,120]
[421230887,1777276841819,1120.53,0.00032876,120]
[421230888,1777276842756,1164.24,0.00032876,120]
[421230889,1777276842903,727.8,0.00032876,120]
[421230890,1777276843130,500.0,0.00032876,120]
[421230891,1777276843270,372.83721838,0.00032876,120]
[421230892,1777276843515,2000.0,0.0003,120]
[421230893,1777276843869,500.0,0.00032876,120]
[421230894,1777276843932,500.0,0.00032876,120]
[421230895,1777276844260,2095.69,0.00032876,120]
[421230896,1777276844948,219.97512488,0.00032876,120]
[421230897,1777276845039,500.0,0.00032876,120]
[421230898,1777276845306,3298.04,0.00032876,120]
[421230899,1777276845540,500.0,0.00032876,120]
[421230900,1777276846521,254.26044448,0.00032876,120]
[421230901,1777276846807,500.0,0.00032876,120]
[421230902,1777276846927,500.0,0.00032876,120]
[421230903,1777276847172,1153.56,0.00032876,120]
[421230904,1777276847304,532.67297285,0.00032876,120]
[421230905,1777276847940,683.47,0.00032876,120]
[421230906,1777276848125,500.0,0.00032876,120]
[421230908,1777276849807,500.0,0.00032876,120]
[421230909,1777276850476,500.0,0.00032876,120]
[421230910,1777276850684,7514.28,0.00032876,120]
[421230911,1777276850815,500.0,0.00032876,120]
[421230912,1777276850925,500.0,0.00032876,120]
[421230913,1777276851913,500.0,0.00032876,120]
[421230914,1777276852737,500.0,0.00032876,120]
[421230915,1777276852775,567.44,0.00032876,120]
[421230916,1777276852999,500.0,0.0003287,120]
[421230917,1777276853153,163.43664646,0.00032876,120]
[421230918,1777276853487,787.64,0.00032876,120]
[421230920,1777276853847,345.60088544,0.00032876,120]
[421230921,1777276853882,2209.1,0.00032876,120]
[421230922,1777276854600,897.0,0.00032876,120]
[421230923,1777276854715,2648.69,0.00032876,120]
[421230924,1777276855444,500.0,0.00032876,120]
[421230925,1777276855693,938.37,0.00032876,120]
[421230926,1777276856059,271.3478663,0.00032876,120]
[421230927,1777276857532,500.0,0.00032876,120]
[421230928,1777276857646,500.0,0.00032876,120]
[421230929,1777276857708,972.01,0.00032876,120]
[421230930,1777276857786,547.73,0.00032876,120]
[421230931,1777276859314,500.0,0.00032876,120]
[421230932,1777276859604,159.92826045,0.0003,120]
[421230933,1777276861361,901.91,0.00032876,120]
[421230934,1777276861909,2327.47,0.00032876,120]
[421230935,1777276863072,500.0,0.00032876,120]
[421230936,1777276863149,248.64603417,0.00032876,120]
[421230937,1777276863769,500.0,0.00032876,120]
[421230938,1777276863888,500.0,0.00032876,120]
[421230939,1777276864521,1223.99,0.00032876,120]
[421230940,1777276864657,2008.37,0.00032876,120]
[421230941,1777276864915,1473.5,0.00032876,120]
[421230942,1777276865339,500.0,0.00032876,120]
[421230943,1777276865605,500.0,0.00032876,120]
[421230944,1777276865782,500.0,0.00032876,120]
[421230945,1777276866721,262.08936601,0.00032876,120]
[421230946,1777276866793,927.48,0.00032876,120]
[421230947,1777276866842,175.14104339,0.00032876,120]
[421230948,1777276866941,555.96908729,0.00032876,120]
[421230949,1777276868367,500.0,0.00032876,120]
[421230950,1777276868571,500.0,0.00032876,120]
[421230951,1777276868790,500.0,0.00032876,120]
[421230952,1777276869188,500.0,0.00032876,120]
[421230953,1777276869576,1435.65,0.00032876,120]
[421230954,1777276869844,4034.54,0.00032876,120]
[421230955,1777276870019,500.0,0.00032876,120]
[421230956,1777276870274,500.0,0.00032876,120]
[421230957,1777276870307,1204.23,0.00032876,120]
[421230958,1777276871826,500.0,0.00032876,120]
[421230959,1777276871878,500.0,0.00032876,120]
[421230960,1777276873011,500.0,0.00032876,120]
[421230961,1777276873331,500.0,0.00032876,120]
[421230962,1777276873513,500.0,0.00032876,120]
[421230963,1777276873687,500.0,0.00032876,120]
[421230964,1777276873720,595.71,0.00032876,120]
[421230965,1777276873886,2164.71,0.00032876,120]
[421230966,1777276874272,212.44975892,0.00032876,120]
[421230967,1777276874611,227.83621036,0.00032876,120]
[421230968,1777276874651,500.0,0.00032876,120]
[421230969,1777276874897,1251.82,0.00032876,120]
[421230970,1777276875228,500.0,0.00032876,120]
[421230971,1777276875549,659.21,0.00032876,120]
[421230972,1777276875922,500.0,0.00032876,120]
[421230973,1777276876176,151.26036044,0.00032876,120]
[421230974,1777276876941,500.0,0.00032876,120]
[421230975,1777276877206,437.44324971,0.00032876,120]
[421230976,1777276878028,1715.49,0.00032876,120]
[421230977,1777276878961,893.9,0.00032876,120]
[421230978,1777276878994,500.0,0.00032876,120]
[421230979,1777276879632,178.99334134,0.00032876,120]
[421230980,1777276880790,500.0,0.00032876,120]
[421230981,1777276880985,500.0,0.00032876,120]
[421230982,1777276881265,1411.52,0.00032876,120]
[421230983,1777276881487,620.76,0.00032876,120]
[421230984,1777276883833,500.0,0.00032876,120]
[421230985,1777276883978,500.0,0.00032876,120]
[421230986,1777276884412,500.0,0.00032876,120]
[421230987,1777276884728,171.24794072,0.00032876,120]
[421230988,1777276885035,889.0,0.00032876,120]
[421230989,1777276885162,1345.2,0.00032876,120]
[421230990,1777276885744,590.12,0.00032876,120]
[421230991,1777276886074,501.32306081,0.00032876,120]
[421230992,1777276887024,248.9242091,0.00032876,120]
[421230993,1777276888114,205.21913617,0.00032876,120]
[421230994,1777276888284,500.0,0.00032876,120]
[421230995,1777276888411,500.0,0.00032876,120]
[421230996,1777276888593,502.57053307,0.00032876,120]
[421230997,1777276888657,557.56596648,0.00032876,120]
[421230998,1777276889183,500.0,0.00032876,120]
[421230999,1777276889348,500.0,0.00032876,120]
[421231000,1777276889448,1154.05,0.00032876,120]
[421231001,1777276889712,500.0,0.00032876,120]
[421231002,1777276890156,1325.52,0.00032876,120]
[421231003,1777276890797,500.0,0.00032876,120]
[421231004,1777276891269,500.0,0.00032876,120]
[421231005,1777276891556,221.90574209,0.00032876,120]
[421231007,1777276892325,1282.94,0.00032876,120]
[421231008,1777276892522,500.0,0.00032876,120]
[421231009,1777276893539,500.0,0.00032876,120]
[421231010,1777276893819,566.68546619,0.00032876,120]
[421231011,1777276893853,2847.37919615,0.00032876,120]
[421231013,1777276975504,1000.0,0.000166,120]
[421231014,1777276975792,1000.0,0.000165,120]
[421231015,1777276976067,1000.0,0.000116,60]
[421231019,1777277038510,1000.0,0.000166,120]
[421231020,1777277038810,1000.0,0.000165,120]
[421231021,1777277039166,1000.0,0.000116,60]
[421231022,1777277101654,1000.0,0.000166,120]
[421231023,1777277101957,1000.0,0.000165,120]
[421231024,1777277102270,1000.0,0.000116,60]
[421231030,1777277164726,1000.0,0.000166,120]
[421231045,1777277432161,-150.0,8.8e-05,2]
[421231046,1777277432170,-150.0,8.803e-05,2]